fUST/lending_fUST_20250425
["ID","MTS","AMOUNT","RATE_DAILY","PERIOD"]
[358897698,1745533843542,-500.0,0.00016712,2]
[358897699,1745533843553,-500.0,0.00016712,2]
[358897700,1745533843564,-500.0,0.00016712,2]
[358897701,1745533843573,-500.0,0.00016712,2]
[358897702,1745533843582,-778.52,0.00016712,2]
[358897703,1745533843592,-500.0,0.00016712,2]
[358897704,1745533843602,-1908.99,0.00016712,2]
[358897705,1745533843612,-500.0,0.00016712,2]
[358897706,1745533843621,-500.0,0.00016712,2]
[358897707,1745533843630,-500.0,0.00016712,2]
[358897708,1745533843640,-8263.55,0.00016712,2]
[358897709,1745533843649,-500.0,0.00016712,2]
[358897710,1745533843658,-1256.32,0.00016712,2]
[358897711,1745533843668,-5124.25,0.00016712,2]
[358897712,1745533843678,-738.43,0.00016712,2]
[358897713,1745533843687,-557.92,0.00016712,2]
[358897714,1745533843697,-500.0,0.00016712,2]
[358897715,1745533843706,-500.0,0.00016712,2]
[358897716,1745533843716,-151.0,0.00016712,2]
[358897717,1745533843725,-151.0,0.00016712,2]
[358897718,1745533843735,-604.79,0.00016712,2]
[358897719,1745533843745,-945.33,0.00016712,2]
[358897720,1745533843755,-500.0,0.00016712,2]
[358897721,1745533843765,-525.01,0.00016712,2]
[358897722,1745533843775,-678.58,0.00016712,2]
[358897723,1745533843785,-711.02,0.00016712,2]
[358897724,1745533843794,-553.07,0.00016712,2]
[358897725,1745533843804,-500.0,0.00016712,2]
[358897726,1745533843814,-500.0,0.00016712,2]
[358897727,1745533843823,-2541.03,0.00016712,2]
[358897728,1745533843833,-500.0,0.00016712,2]
[358897729,1745533843842,-152.972908,0.00016722,2]
[358897730,1745533843852,-151.0,0.00016722,2]
[358897731,1745533843861,-160.0,0.00016723,2]
[358897732,1745533843871,-160.0,0.00016736,2]
[358897733,1745533843881,-420.89490186,0.00016736,2]
[358897734,1745533843890,-160.0,0.00016736,2]
[358897735,1745533843899,-840.0731918,0.00016736,2]
[358897736,1745533843909,-12576.49486522,0.00016736,2]
[358897737,1745533843918,-160.0,0.00016736,2]
[358897738,1745533843928,-160.0,0.00016737,2]
[358897739,1745533843937,-500.0,0.00016773,2]
[358897740,1745533843947,-500.0,0.00016773,2]
[358897741,1745533843956,-500.0,0.00016773,2]
[358897742,1745533843966,-500.0,0.00016773,2]
[358897743,1745533843975,-500.0,0.00016773,2]
[358897744,1745533843985,-500.0,0.00016773,2]
[358897745,1745533843994,-501.26066108,0.00016773,2]
[358897746,1745533844003,-500.0,0.00016773,2]
[358897747,1745533844013,-349.6676322,0.000168,2]
[358897748,1745533844023,-1259.8023531,0.000168,2]
[358897749,1745533844032,-500.0,0.00016873,2]
[358897750,1745533844041,-500.0,0.00016873,2]
[358897751,1745533844050,-534.44279293,0.00016873,2]
[358897752,1745533844060,-500.0,0.00016873,2]
[358897753,1745533844071,-455.78386905,0.00016873,2]
[358897754,1745533844082,-500.0,0.00016873,2]
[358897755,1745533844092,-500.0,0.00016873,2]
[358897756,1745533844102,-602.79187796,0.00016873,2]
[358897757,1745533844113,-500.0,0.00016873,2]
[358897758,1745533844123,-500.0,0.00016873,2]
[358897759,1745533844133,-500.0,0.00016873,2]
[358897760,1745533844146,-151.6659995,0.00016873,2]
[358897761,1745533844158,-252.01722051,0.00016873,2]
[358897762,1745533844168,-500.0,0.00016873,2]
[358897763,1745533844180,-500.0,0.00016873,2]
[358897764,1745533844189,-500.0,0.00016873,2]
[358897765,1745533844198,-500.0,0.00016873,2]
[358897766,1745533844208,-523.52660699,0.00016873,2]
[358897767,1745533844218,-500.35451025,0.00016873,2]
[358897768,1745533844228,-590.01013141,0.00016873,2]
[358897769,1745533844238,-528.73344489,0.00016873,2]
[358897770,1745533844248,-500.0,0.00016873,2]
[358897771,1745533844258,-500.0,0.00016873,2]
[358897772,1745533844268,-500.50064836,0.00016873,2]
[358897773,1745533844279,-507.07321883,0.00016873,2]
[358897774,1745533844289,-500.28271184,0.00016873,2]
[358897775,1745533844299,-500.34761357,0.00016873,2]
[358897776,1745533844310,-403.51506283,0.00016873,2]
[358897777,1745533844320,-501.59335915,0.00016873,2]
[358897778,1745533844331,-500.0,0.00016873,2]
[358897779,1745533844340,-500.0,0.00016873,2]
[358897780,1745533844349,-581.35849224,0.00016873,2]
[358897781,1745533844359,-500.0,0.00016873,2]
[358897782,1745533844369,-284.0,0.00016873,2]
[358897783,1745533844379,-500.27445466,0.00016873,2]
[358897784,1745533844389,-502.64694534,0.00016873,2]
[358897785,1745533844401,-500.0,0.00016873,2]
[358897786,1745533844412,-500.0,0.00016873,2]
[358897787,1745533844421,-500.0,0.00016873,2]
[358897788,1745533844431,-235.78385416,0.00016873,2]
[358897789,1745533844441,-443.19438905,0.00016873,2]
[358897790,1745533844450,-500.0,0.00016873,2]
[358897791,1745533844459,-500.0,0.00016873,2]
[358897792,1745533844468,-151.0,0.00016886,2]
[358897793,1745533844481,-151.0,0.00016886,2]
[358897794,1745533844491,-151.0,0.00016886,2]
[358897795,1745533844501,-151.0,0.00016886,2]
[358897796,1745533844510,-500.727156,0.00016886,2]
[358897797,1745533844521,-500.727156,0.00016886,2]
[358897798,1745533844530,-151.0,0.00016886,2]
[358897799,1745533844539,-173770.19533568,0.00016886,2]
[358897800,1745533844563,-5387.61652021,0.00016886,2]
[358897801,1745533844575,-1778.7893169,0.00016886,2]
[358897802,1745533844586,-561.84778779,0.00016886,2]
[358897803,1745533844598,-991.30369863,0.00016886,2]
[358897804,1745533845240,-5593.57951589,0.00016886,2]
[358897805,1745533845252,-252.15239808,0.00016886,2]
[358897806,1745533845265,-268.735003,0.00016886,2]
[358897807,1745533845277,-172346.9170639,0.00016886,2]
[358897808,1745533845287,-500.0,0.00016973,2]
[358897809,1745533845297,-500.0,0.00016973,2]
[358897810,1745533845307,-501.09534526,0.00016973,2]
[358897811,1745533845316,-566.81,0.00016986,2]
[358897812,1745533845326,-500.0,0.00016986,2]
[358897813,1745533845335,-500.0,0.00016986,2]
[358897814,1745533845344,-500.0,0.00016986,2]
[358897815,1745533845354,-500.0,0.00016986,2]
[358897816,1745533845364,-500.0,0.00016986,2]
[358897817,1745533845375,-500.0,0.00016986,2]
[358897818,1745533845384,-500.0,0.00016986,2]
[358897819,1745533845394,-917.94,0.00016986,2]
[358897820,1745533845405,-262.33167693,0.00016986,2]
[358897821,1745533845416,-245.59222798,0.00016986,2]
[358897822,1745533845427,-500.0,0.00016986,2]
[358897823,1745533845436,-500.0,0.00016986,2]
[358897824,1745533845446,-453.39745666,0.00016986,2]
[358897825,1745533845456,-500.0,0.00016986,2]
[358897826,1745533845466,-500.0,0.00016986,2]
[358897827,1745533845479,-500.0,0.00016986,2]
[358897828,1745533845491,-500.0,0.00016986,2]
[358897829,1745533845500,-500.0,0.00016986,2]
[358897830,1745533845510,-500.0,0.00016986,2]
[358897831,1745533845520,-500.0,0.00016986,2]
[358897832,1745533845531,-997.34,0.00016986,2]
[358897833,1745533845541,-500.0,0.00016986,2]
[358897834,1745533845550,-500.0,0.00016986,2]
[358897835,1745533845559,-500.0,0.00016986,2]
[358897836,1745533845569,-500.0,0.00016986,2]
[358897837,1745533845579,-500.0,0.00016986,2]
[358897838,1745533845589,-500.0,0.00016986,2]
[358897839,1745533845598,-371.66824041,0.00016986,2]
[358897840,1745533845607,-500.0,0.00016986,2]
[358897842,1745533845617,-500.0,0.00016986,2]
[358897843,1745533845626,-562.71,0.00016986,2]
[358897844,1745533845636,-500.0,0.00016986,2]
[358897845,1745533845645,-115.93461698,0.00016986,2]
[358897850,1745533847505,-54.00065895,0.00015068,2]
[358897851,1745533848194,-2990.5120914,0.00015068,2]
[358897852,1745533848204,-384.06538302,0.00016986,2]
[358897853,1745533848214,-500.0,0.00016986,2]
[358897854,1745533848223,-500.0,0.00016986,2]
[358897855,1745533848233,-500.0,0.00016986,2]
[358897856,1745533848242,-500.0,0.00016986,2]
[358897857,1745533848252,-500.0,0.00016986,2]
[358897858,1745533848262,-500.0,0.00016986,2]
[358897859,1745533848272,-500.0,0.00016986,2]
[358897860,1745533848281,-500.0,0.00016986,2]
[358897861,1745533848291,-247.4,0.00016986,2]
[358897862,1745533848301,-500.0,0.00016986,2]
[358897863,1745533848310,-500.0,0.00016986,2]
[358897864,1745533848319,-2006.97,0.00016986,2]
[358897865,1745533848330,-500.0,0.00016986,2]
[358897866,1745533848339,-500.0,0.00016986,2]
[358897867,1745533848349,-193.27352657,0.00016986,2]
[358897868,1745533848359,-526.46,0.00016986,2]
[358897869,1745533848369,-717.23,0.00016986,2]
[358897870,1745533848378,-500.0,0.00016986,2]
[358897871,1745533848388,-500.0,0.00016986,2]
[358897872,1745533848397,-500.0,0.00016986,2]
[358897873,1745533848407,-500.0,0.00016986,2]
[358897874,1745533848417,-382.1314834,0.00016986,2]
[358897876,1745533967057,1000.0,0.00014967,2]
[358897879,1745534086230,210.17740184,0.00014968,2]
[358898706,1745534305801,183.90522661,0.00014963,2]
[358898707,1745534356043,23873.55025786,0.00014962,2]
[358898711,1745534523530,160.91707331,0.0001496,2]
[358898717,1745534716861,486.793107,0.00014591,2]
[358898720,1745534738932,160.91707324,0.00014958,2]
[358898732,1745534836125,-300.0,0.00015055,2]
[358898733,1745534836150,-4.76373656,0.00015056,2]
[358898735,1745534873231,500.0,0.00025,30]
[358898736,1745534892151,501.0,0.00025,30]
[358898739,1745534918774,502.0,0.00025,30]
[358898744,1745534939310,503.0,0.00025,30]
[358898745,1745534949184,160.91707324,0.00014955,2]
[358898754,1745534978537,505.0,0.00025,30]
[358898787,1745535032288,-300.0,0.00015054,2]
[358898789,1745535032299,-300.0,0.00015054,2]
[358898791,1745535032309,-500.0,0.00015055,2]
[358898794,1745535032320,-267.62639072,0.00015055,2]
[358898796,1745535032330,-457.11894511,0.00015055,2]
[358898798,1745535032340,-225.59404572,0.00015055,2]
[358898800,1745535032350,-500.0,0.00015055,2]
[358898802,1745535032360,-500.0,0.00015055,2]
[358898804,1745535032371,-500.0,0.00015055,2]
[358898806,1745535032381,-500.0,0.00015055,2]
[358898808,1745535032391,-500.0,0.00015055,2]
[358898810,1745535032401,-500.0,0.00015055,2]
[358898812,1745535032411,-195.92636245,0.00015055,2]
[358898814,1745535032423,-304.07363755,0.00015055,2]
[358898816,1745535032433,-163.15328163,0.00015055,2]
[358898818,1745535032446,-336.84671837,0.00015055,2]
[358898820,1745535032456,-500.0,0.00015055,2]
[358898822,1745535032466,-500.0,0.00015055,2]
[358898824,1745535032476,-500.0,0.00015055,2]
[358898826,1745535032485,-500.0,0.00015055,2]
[358898829,1745535032496,-500.0,0.00015055,2]
[358898830,1745535032505,-247.59650556,0.00015055,2]
[358898831,1745535032516,-500.0,0.00015055,2]
[358898832,1745535032526,-500.0,0.00015055,2]
[358898833,1745535032536,-500.0,0.00015055,2]
[358898835,1745535032546,-500.0,0.00015055,2]
[358898837,1745535032555,-500.0,0.00015055,2]
[358898839,1745535032565,-500.0,0.00015055,2]
[358898841,1745535032574,-500.0,0.00015055,2]
[358898843,1745535032584,-500.0,0.00015055,2]
[358898844,1745535032593,-500.0,0.00015055,2]
[358898845,1745535032603,-500.0,0.00015055,2]
[358898847,1745535032614,-500.0,0.00015055,2]
[358898849,1745535032623,-500.0,0.00015055,2]
[358898851,1745535032634,-500.0,0.00015055,2]
[358898853,1745535032643,-500.0,0.00015055,2]
[358898855,1745535032653,-500.0,0.00015055,2]
[358898858,1745535032663,-500.0,0.00015055,2]
[358898860,1745535032673,-500.0,0.00015055,2]
[358898862,1745535032684,-500.0,0.00015055,2]
[358898864,1745535032693,-500.0,0.00015055,2]
[358898866,1745535032703,-500.0,0.00015055,2]
[358898868,1745535032713,-500.0,0.00015055,2]
[358898870,1745535032723,-500.0,0.00015055,2]
[358898872,1745535032733,-971.55906185,0.00015055,2]
[358898874,1745535032742,-971.55906185,0.00015055,2]
[358898875,1745535032752,-971.55906185,0.00015055,2]
[358898877,1745535032761,-971.55906185,0.00015055,2]
[358898878,1745535032771,-971.55906185,0.00015055,2]
[358898879,1745535032782,-971.55906185,0.00015055,2]
[358898880,1745535032791,-971.55906185,0.00015055,2]
[358898881,1745535032801,-971.55906185,0.00015055,2]
[358898882,1745535032811,-971.55906185,0.00015055,2]
[358898883,1745535032820,-971.55906185,0.00015055,2]
[358898884,1745535032831,-971.55906185,0.00015055,2]
[358898885,1745535032840,-971.55906185,0.00015055,2]
[358898886,1745535032850,-971.55906185,0.00015055,2]
[358898887,1745535032860,-971.55906185,0.00015055,2]
[358898888,1745535032870,-971.55906185,0.00015055,2]
[358898889,1745535032880,-971.55906185,0.00015055,2]
[358898890,1745535032890,-971.55906185,0.00015055,2]
[358898891,1745535032901,-971.55906185,0.00015055,2]
[358898892,1745535032911,-971.55906185,0.00015055,2]
[358898893,1745535032920,-971.55906185,0.00015055,2]
[358898894,1745535032931,-971.55906185,0.00015055,2]
[358898895,1745535032941,-971.55906185,0.00015055,2]
[358898896,1745535032950,-971.55906185,0.00015055,2]
[358898897,1745535032960,-971.55906185,0.00015055,2]
[358898898,1745535032971,-971.55906185,0.00015055,2]
[358898899,1745535032980,-971.55906185,0.00015055,2]
[358898900,1745535032990,-971.55906185,0.00015055,2]
[358898901,1745535033000,-971.55906185,0.00015055,2]
[358898902,1745535033012,-971.55906185,0.00015055,2]
[358898903,1745535033022,-971.55906185,0.00015055,2]
[358898904,1745535033033,-971.55906185,0.00015055,2]
[358898905,1745535033043,-971.55906185,0.00015055,2]
[358898906,1745535033054,-971.55906185,0.00015055,2]
[358898907,1745535033064,-971.55906185,0.00015055,2]
[358898908,1745535033075,-961.84347124,0.00015055,2]
[358898909,1745535033086,-961.84347124,0.00015055,2]
[358898910,1745535033096,-961.84347124,0.00015055,2]
[358898911,1745535033106,-961.84347124,0.00015055,2]
[358898912,1745535033117,-961.84347124,0.00015055,2]
[358898913,1745535033128,-961.84347124,0.00015055,2]
[358898914,1745535033139,-961.84347124,0.00015055,2]
[358898915,1745535033150,-961.84347124,0.00015055,2]
[358898916,1745535033160,-961.84347124,0.00015055,2]
[358898917,1745535033170,-961.84347124,0.00015055,2]
[358898918,1745535033181,-961.84347124,0.00015055,2]
[358898919,1745535033191,-961.84347124,0.00015055,2]
[358898920,1745535033202,-961.84347124,0.00015055,2]
[358898921,1745535033212,-961.84347124,0.00015055,2]
[358898922,1745535033436,-961.84347124,0.00015055,2]
[358898923,1745535033448,-961.84347124,0.00015055,2]
[358898924,1745535033458,-961.84347124,0.00015055,2]
[358898925,1745535033468,-961.84347124,0.00015055,2]
[358898926,1745535033478,-961.84347124,0.00015055,2]
[358898927,1745535033489,-340.09,0.00015055,2]
[358898928,1745535033499,-24900.0,0.00015121,2]
[358898929,1745535033509,-184.4899656,0.00015242,2]
[358898930,1745535033519,-990.6824955,0.00015515,2]
[358898931,1745535033529,-10804.12628379,0.00015934,2]
[358898932,1745535033539,-1571.11006337,0.00016273,2]
[358898933,1745535033549,-157.2502195,0.000163,2]
[358898934,1745535033559,-1464.3387991,0.00016338,2]
[358898953,1745535038254,-402.55363394,0.00016338,2]
[358898955,1745535038266,-1000.0,0.00016338,2]
[358898966,1745535038355,-1444.79257705,0.00016338,2]
[358898968,1745535038367,-686.54162431,0.00016338,2]
[358898970,1745535038380,-100174.48687951,0.00016338,2]
[358898987,1745535038538,-264827.28648609,0.00016338,2]
[358898989,1745535038548,-1571.11006334,0.00016358,2]
[358898991,1745535038557,-500.0,0.00016373,2]
[358898993,1745535038566,-500.0,0.00016438,2]
[358898995,1745535038575,-264.239673,0.00016438,2]
[358898997,1745535038585,-500.0,0.00016438,2]
[358898999,1745535038594,-500.0,0.00016438,2]
[358899001,1745535038604,-500.0,0.00016438,2]
[358899003,1745535038613,-500.0,0.00016438,2]
[358899005,1745535038623,-500.0,0.00016438,2]
[358899007,1745535038632,-500.0,0.00016438,2]
[358899009,1745535038641,-500.0,0.00016438,2]
[358899011,1745535038651,-500.0,0.00016438,2]
[358899013,1745535038660,-500.0,0.00016438,2]
[358899015,1745535038669,-500.0,0.00016438,2]
[358899017,1745535038679,-500.0,0.00016438,2]
[358899019,1745535038689,-500.0,0.00016438,2]
[358899021,1745535038698,-500.0,0.00016438,2]
[358899023,1745535038708,-500.0,0.00016438,2]
[358899025,1745535038717,-500.0,0.00016438,2]
[358899027,1745535038727,-500.0,0.00016438,2]
[358899029,1745535038736,-500.0,0.00016438,2]
[358899031,1745535038746,-500.0,0.00016438,2]
[358899033,1745535038756,-252.66350855,0.00016438,2]
[358899035,1745535038766,-500.0,0.00016438,2]
[358899037,1745535038775,-503.37010228,0.00016438,2]
[358899039,1745535038785,-415.98595171,0.00016438,2]
[358899041,1745535038795,-500.0,0.00016438,2]
[358899043,1745535038804,-509.38435186,0.00016438,2]
[358899045,1745535038814,-500.0,0.00016438,2]
[358899047,1745535038823,-500.0,0.00016438,2]
[358899049,1745535038832,-500.0,0.00016438,2]
[358899051,1745535038842,-500.0,0.00016438,2]
[358899053,1745535038851,-509.07230077,0.00016438,2]
[358899055,1745535038861,-504.91272129,0.00016438,2]
[358899057,1745535038871,-500.0,0.00016438,2]
[358899059,1745535038881,-500.0,0.00016438,2]
[358899061,1745535038892,-500.0,0.00016438,2]
[358899063,1745535038902,-699.11,0.00016438,2]
[358899065,1745535038912,-500.0,0.00016438,2]
[358899067,1745535038922,-500.0,0.00016438,2]
[358899069,1745535038932,-500.0,0.00016438,2]
[358899071,1745535038942,-500.0,0.00016438,2]
[358899073,1745535038953,-500.0,0.00016438,2]
[358899075,1745535038962,-500.0,0.00016438,2]
[358899077,1745535038972,-500.0,0.00016438,2]
[358899079,1745535038982,-500.0,0.00016438,2]
[358899081,1745535038992,-500.0,0.00016438,2]
[358899083,1745535039002,-500.0,0.00016438,2]
[358899085,1745535039015,-500.0,0.00016438,2]
[358899087,1745535039025,-500.0,0.00016438,2]
[358899089,1745535039036,-500.0,0.00016438,2]
[358899091,1745535039046,-263.95922954,0.00016438,2]
[358899093,1745535039056,-500.0,0.00016438,2]
[358899095,1745535039066,-500.0,0.00016438,2]
[358899097,1745535039076,-500.0,0.00016438,2]
[358899099,1745535039085,-500.0,0.00016438,2]
[358899101,1745535039096,-500.0,0.00016438,2]
[358899103,1745535039105,-500.0,0.00016438,2]
[358899105,1745535039115,-500.0,0.00016438,2]
[358899107,1745535039125,-565.17,0.00016438,2]
[358899109,1745535039135,-500.0,0.00016438,2]
[358899111,1745535039144,-500.0,0.00016438,2]
[358899113,1745535039154,-506.20099336,0.00016438,2]
[358899115,1745535039163,-500.0,0.00016438,2]
[358899117,1745535039172,-500.0,0.00016438,2]
[358899119,1745535039182,-500.0,0.00016438,2]
[358899121,1745535039191,-500.0,0.00016438,2]
[358899123,1745535039200,-500.0,0.00016438,2]
[358899125,1745535039209,-500.0,0.00016438,2]
[358899127,1745535039220,-500.0,0.00016438,2]
[358899129,1745535039229,-500.0,0.00016438,2]
[358899131,1745535039239,-500.0,0.00016438,2]
[358899133,1745535039248,-288.07419625,0.00016438,2]
[358899135,1745535039257,-500.0,0.00016438,2]
[358899137,1745535039267,-500.0,0.00016438,2]
[358899139,1745535039280,-507.507474,0.00016438,2]
[358899141,1745535039289,-500.0,0.00016438,2]
[358899143,1745535039298,-266.59863202,0.00016438,2]
[358899145,1745535039307,-500.0,0.00016438,2]
[358899147,1745535039318,-500.0,0.00016438,2]
[358899149,1745535039327,-500.0,0.00016438,2]
[358899151,1745535039336,-524.27470882,0.00016438,2]
[358899153,1745535039345,-500.0,0.00016438,2]
[358899155,1745535039354,-500.0,0.00016438,2]
[358899157,1745535039363,-500.0,0.00016438,2]
[358899159,1745535039372,-500.0,0.00016438,2]
[358899161,1745535039381,-500.0,0.00016438,2]
[358899163,1745535039390,-500.0,0.00016438,2]
[358899165,1745535039400,-500.0,0.00016438,2]
[358899167,1745535039410,-500.0,0.00016438,2]
[358899169,1745535039420,-500.0,0.00016438,2]
[358899171,1745535039429,-500.0,0.00016438,2]
[358899173,1745535039438,-500.0,0.00016438,2]
[358899175,1745535039447,-500.0,0.00016438,2]
[358899177,1745535039456,-500.0,0.00016438,2]
[358899178,1745535039466,-500.0,0.00016438,2]
[358899180,1745535039475,-500.0,0.00016438,2]
[358899183,1745535039485,-500.0,0.00016438,2]
[358899184,1745535039495,-500.0,0.00016438,2]
[358899187,1745535039504,-500.0,0.00016438,2]
[358899188,1745535039513,-500.0,0.00016438,2]
[358899191,1745535039523,-500.0,0.00016438,2]
[358899192,1745535039532,-500.0,0.00016438,2]
[358899194,1745535039542,-500.0,0.00016438,2]
[358899195,1745535039551,-500.0,0.00016438,2]
[358899196,1745535039560,-500.0,0.00016438,2]
[358899197,1745535039569,-500.0,0.00016438,2]
[358899198,1745535039579,-1151.16,0.00016438,2]
[358899199,1745535039589,-767.45,0.00016438,2]
[358899200,1745535039599,-500.0,0.00016438,2]
[358899201,1745535039608,-500.0,0.00016438,2]
[358899202,1745535039618,-500.0,0.00016438,2]
[358899203,1745535039627,-500.0,0.00016438,2]
[358899204,1745535039636,-500.0,0.00016438,2]
[358899205,1745535039646,-1112.16,0.00016438,2]
[358899206,1745535039656,-500.0,0.00016438,2]
[358899207,1745535039668,-500.0,0.00016438,2]
[358899208,1745535039678,-500.0,0.00016438,2]
[358899209,1745535039687,-572.3977048,0.00016438,2]
[358899210,1745535039697,-500.0,0.00016438,2]
[358899211,1745535039706,-500.0,0.00016438,2]
[358899212,1745535039715,-291.16103928,0.00016438,2]
[358899213,1745535039725,-535.59,0.00016438,2]
[358899214,1745535039734,-504.08410395,0.00016438,2]
[358899215,1745535039743,-500.0,0.00016438,2]
[358899216,1745535039752,-500.0,0.00016438,2]
[358899217,1745535039762,-1018.98,0.00016438,2]
[358899218,1745535039771,-500.0,0.00016438,2]
[358899219,1745535039780,-500.0,0.00016438,2]
[358899220,1745535039789,-517.5,0.00016438,2]
[358899221,1745535039799,-500.0,0.00016438,2]
[358899222,1745535039808,-500.0,0.00016438,2]
[358899223,1745535039818,-500.0,0.00016438,2]
[358899224,1745535039828,-500.0,0.00016438,2]
[358899225,1745535039838,-500.0,0.00016438,2]
[358899226,1745535039847,-500.0,0.00016438,2]
[358899227,1745535039857,-2646.64,0.00016438,2]
[358899228,1745535039866,-500.0,0.00016438,2]
[358899229,1745535039876,-500.0,0.00016438,2]
[358899230,1745535039886,-963.28,0.00016438,2]
[358899231,1745535039895,-500.0,0.00016438,2]
[358899232,1745535039905,-527.59605549,0.00016438,2]
[358899233,1745535039915,-500.0,0.00016438,2]
[358899234,1745535039924,-500.0,0.00016438,2]
[358899235,1745535039934,-944.9,0.00016438,2]
[358899236,1745535039943,-500.0,0.00016438,2]
[358899237,1745535039954,-536.69,0.00016438,2]
[358899238,1745535039963,-660.03,0.00016438,2]
[358899239,1745535039972,-674.64,0.00016438,2]
[358899240,1745535039981,-500.0,0.00016438,2]
[358899241,1745535039991,-701.27,0.00016438,2]
[358899243,1745535040000,-500.0,0.00016438,2]
[358899244,1745535040013,-500.0,0.00016438,2]
[358899245,1745535040022,-500.0,0.00016438,2]
[358899246,1745535040032,-960.25,0.00016438,2]
[358899247,1745535040041,-500.0,0.00016438,2]
[358899248,1745535040051,-500.0,0.00016438,2]
[358899250,1745535040060,-500.0,0.00016438,2]
[358899252,1745535040070,-500.0,0.00016438,2]
[358899254,1745535040079,-527.96,0.00016438,2]
[358899255,1745535040089,-527.64,0.00016438,2]
[358899256,1745535040099,-500.0,0.00016438,2]
[358899257,1745535040108,-1034.93,0.00016438,2]
[358899258,1745535040118,-573.37,0.00016438,2]
[358899259,1745535040127,-500.0,0.00016438,2]
[358899260,1745535040137,-395.69463621,0.00016438,2]
[358899261,1745535040146,-609.65,0.00016438,2]
[358899262,1745535040155,-500.0,0.00016438,2]
[358899263,1745535040166,-534.67,0.00016438,2]
[358899264,1745535040176,-500.0,0.00016438,2]
[358899265,1745535040186,-500.0,0.00016438,2]
[358899266,1745535040196,-500.0,0.00016438,2]
[358899267,1745535040206,-500.0,0.00016438,2]
[358899268,1745535040215,-500.0,0.00016438,2]
[358899269,1745535040225,-500.0,0.00016438,2]
[358899270,1745535040234,-614.5441389,0.00016438,2]
[358899271,1745535040244,-500.0,0.00016438,2]
[358899272,1745535040253,-500.0,0.00016438,2]
[358899273,1745535040263,-500.0,0.00016438,2]
[358899274,1745535040273,-500.0,0.00016438,2]
[358899275,1745535040282,-500.0,0.00016438,2]
[358899276,1745535040292,-500.0,0.00016438,2]
[358899277,1745535040302,-507.17790195,0.00016438,2]
[358899278,1745535040311,-501.98,0.00016438,2]
[358899280,1745535040481,-519.57,0.00016438,2]
[358899281,1745535040493,-500.0,0.00016438,2]
[358899282,1745535040503,-500.0,0.00016438,2]
[358899283,1745535040514,-500.0,0.00016438,2]
[358899284,1745535040524,-500.0,0.00016438,2]
[358899285,1745535040534,-461.97184891,0.00016438,2]
[358899286,1745535040543,-500.0,0.00016438,2]
[358899287,1745535040553,-500.0,0.00016438,2]
[358899288,1745535040563,-500.0,0.00016438,2]
[358899289,1745535040572,-1503.74,0.00016438,2]
[358899290,1745535040582,-500.0,0.00016438,2]
[358899291,1745535040591,-500.0,0.00016438,2]
[358899292,1745535040601,-500.0,0.00016438,2]
[358899293,1745535040611,-500.0,0.00016438,2]
[358899294,1745535040620,-500.0,0.00016438,2]
[358899295,1745535040630,-500.0,0.00016438,2]
[358899296,1745535040639,-500.0,0.00016438,2]
[358899297,1745535040649,-500.0,0.00016438,2]